Cogmind - Beta 13 @@@ ROGUE MODE // 2024.04.14 @ 08:43:25 Player: OldWhovian Result: Self-destructed Performance ------------- Evolutions (1) 500 Regions Visited (4) 800 Robots Destroyed (15) 75 Value Destroyed (441) 441 Prototype IDs (2) 40 Alien Tech Used (0) 0 Bonus (0) 0 TOTAL SCORE: 1856 Bonus ------- None Cogmind --------- Core Integrity 272/400 Matter 300/300 Energy 98/100 System Corruption 0% Temperature Cool (0) Movement Walking (190) Ox1 Location -9/Mines Parts ------- > --- POWER (1) -------- (None) > --- PROPULSION (2) --- Aluminum Leg > --- UTILITY (4) ------ Improved Heat Sink Medium Storage Unit > --- WEAPON (2) ------- Medium Laser > --- INVENTORY (10) --- Ion Engine Light Treads Large Battery (200) Improved Trap Extractor (0/6) Particle Gun Pulse Rifle Heavy Assault Rifle Flak Cannon Grenade Launcher Peak State ------------ > --- POWER ------------ Light Ion Engine > --- PROPULSION ------- Light Treads Light Treads > --- UTILITY ---------- Improved Heat Sink Medium Storage Unit > --- WEAPON ----------- Medium Laser Small Laser > --- INVENTORY -------- Ion Engine Light Ion Engine Aluminum Leg Aluminum Leg Large Battery Improved Trap Extractor Small Laser Pulse Rifle Grenade Launcher [Rating: 10] Favorites ----------- Power Light Ion Engine Engine Light Ion Engine Propulsion Light Treads Treads Light Treads Leg Aluminum Leg Utility Medium Storage Unit Device Improved Heat Sink Storage Medium Storage Unit Weapon Medium Laser Energy Gun Medium Laser Build | -11 -10 -10 -9 -9 ------- Run | Yrd Mat Min Mat Min Slots Evolved 2 | . . . 2 . Power . | . . . . . Propulsion . | . . . . . Utility 2 | . . . 2 . Weapon . | . . . . . Parts Attached 15 | 6 2 4 . 3 Power 2 | 1 . . . 1 Engine 2 | 1 . . . 1 Core . | . . . . . Reactor . | . . . . . Propulsion 5 | 2 . 1 . 2 Treads 3 | 2 . 1 . . Leg 2 | . . . . 2 Wheel . | . . . . . Hover . | . . . . . Flight . | . . . . . Utility 4 | 1 2 1 . . Device 2 | . 1 1 . . Storage 2 | 1 1 . . . Processor . | . . . . . Hackware . | . . . . . Protection . | . . . . . Artifact . | . . . . . Weapon 4 | 2 . 2 . . Energy Gun 4 | 2 . 2 . . Energy Cannon . | . . . . . Ballistic Gun . | . . . . . Ballistic Cannon . | . . . . . Launcher . | . . . . . Special Weapon . | . . . . . Impact Weapon . | . . . . . Slashing Weapon . | . . . . . Piercing Weapon . | . . . . . Special Melee Weapon . | . . . . . Unidentified Prototypes . | . . . . . Parts Lost 4 | . . . . 4 Power 1 | . . . . 1 Propulsion 2 | . . . . 2 Utility . | . . . . . Weapon 1 | . . . . 1 Highest Loss Streak 3 | . . . . 3 To Critical Strikes . | . . . . . Average Slot Usage (%) 89 | . 98 98 77 75 Engine 12 | . 14 14 11 11 Treads 21 | . 28 27 22 11 Leg 3 | . . . . 9 Device 12 | . 12 14 11 11 Storage 12 | . 14 14 11 11 Energy Gun 25 | . 28 27 22 21 Naked Turns . | . . . . . Heaviest Build 17 | 11 17 17 17 17 Greatest Support 40 | 40 40 40 40 40 Greatest Overweight (x) . | . . . . . Average Overweight (x) . | . . . . . Largest Inventory Capacity 10 | 8 10 10 10 10 Average Capacity 9 | 7 8 10 10 10 Most Carried 10 | 4 8 10 10 10 Average Carried 8 | 2 7 9 10 9 Final Capacity 10 | 8 10 10 10 10 Final Carried 10 | 4 8 10 10 9 Class Distribution -------------------- 100% | Mutant Dominant Class ---------------- Mutant | -10/Materials Mutant | -10/Mines Mutant | -9/Materials Mutant | -9/Mines Resources | -11 -10 -10 -9 -9 ----------- Run | Yrd Mat Min Mat Min Matter Collected 345 | 255 25 40 . 25 Remotely . | . . . . . Salvage Created 425 | . 242 44 . 139 Parts 25 | . 15 3 . 7 Haulers Intercepted . | . . . . . Recyclers Shooed . | . . . . . Parts Field Recycled . | . . . . . Retrieved Matter . | . . . . . Parts Self-Destructed . | . . . . . Prevented . | . . . . . Kills | -11 -10 -10 -9 -9 ------- Run | Yrd Mat Min Mat Min Combat Hostiles Destroyed 14 | . 6 1 . 7 Guns 14 | . 6 1 . 7 Classes Destroyed 5 | . 2 . . 3 Operator 1 | . 1 . . . Swarmer 4 | . . . . 4 Grunt 8 | . 6 1 . 1 Duelist 1 | . . . . 1 Demolisher 1 | . . . . 1 Best Kill Streak 4 | . 1 1 . 4 Combat Bots Only 4 | . 1 1 . 4 Max Kills in Single Turn 1 | . 1 1 . 1 Gunslinging . | . . . . . Exploded . | . . . . . Melee . | . . . . . Uniques/NPCs Destroyed . | . . . . . Combat | -11 -10 -10 -9 -9 -------- Run | Yrd Mat Min Mat Min Hostile Shots Fired 80 | . 30 3 3 44 Missed 22 | . 7 2 1 12 Damage Taken 750 | . 280 14 19 437 Core 212 | . 70 14 . 128 Absorbed by Shields . | . . . . . Core Remaining (%) 83 | 100 . 66 . . Volleys Fired 75 | . 31 5 . 39 Largest 2 | . 2 2 . 2 Hottest 90 | . 90 90 . 90 Shots Fired 136 | . 62 9 . 65 Gun 136 | . 62 9 . 65 Cannon . | . . . . . Launcher . | . . . . . Special . | . . . . . Kinetic . | . . . . . Thermal 136 | . 62 9 . 65 Explosive . | . . . . . Electromagnetic . | . . . . . Robot Hit Streak 9 | . 9 6 . 9 Robot Miss Streak 5 | . 5 2 . 4 Penetration Max . | . . . . . Secondary Targets 2 | . . . . 2 Max Gunslinging Chain 1 | . . . . 1 Shots Hit Robots 76 | . 42 7 . 27 Core Hits 31 | . 17 3 . 11 Critical Kills . | . . . . . Critical Parts Destroyed . | . . . . . Critical Strikes 3 | . 1 1 . 1 Burn 3 | . 1 1 . 1 Melee Attacks . | . . . . . Impact . | . . . . . Slashing . | . . . . . Piercing . | . . . . . Sneak Attacks . | . . . . . Combat Hostiles . | . . . . . Follow-up Attacks . | . . . . . Damage Inflicted 897 | . 490 84 . 323 Guns 894 | . 490 84 . 320 Cannons . | . . . . . Explosions . | . . . . . Melee . | . . . . . Ramming 3 | . . . . 3 Kinetic . | . . . . . Thermal 894 | . 490 84 . 320 Explosive . | . . . . . Electromagnetic . | . . . . . Impact . | . . . . . Slashing . | . . . . . Piercing . | . . . . . Highest Corruption . | . . . . . Average Corruption . | . . . . . Corruption Purged . | . . . . . Corruption Blocked . | . . . . . Overload Shots . | . . . . . Overflow Damage . | . . . . . Projectiles . | . . . . . Explosions . | . . . . . Melee . | . . . . . Knockbacks . | . . . . . Impact . | . . . . . Kinetic . | . . . . . Secondary . | . . . . . Self-Inflicted Damage . | . . . . . Shots . | . . . . . Rammed . | . . . . . Targets Rammed 2 | . . . . 2 Kicked 2 | . . . . 2 Crushed . | . . . . . Highest Temperature 87 | . 87 5 . . Average Temperature 36 | . 37 3 . . Received Heat Transfer 222 | . 159 9 . 54 Siege Activations . | . . . . . Robots Corrupted . | . . . . . Combat Hostiles . | . . . . . Parts Fried . | . . . . . Impact Corruptions . | . . . . . Robots Melted . | . . . . . Combat Hostiles . | . . . . . Parts Melted 3 | . 2 . . 1 Heat Transferred 2602 | . 1364 297 . 941 Parts Sabotaged . | . . . . . Parts Stolen . | . . . . . Parts Stripped . | . . . . . Power Chain Reactions . | . . . . . Alert | -11 -10 -10 -9 -9 ------- Run | Yrd Mat Min Mat Min Peak Influence 137 | . 137 45 17 116 Initial 36 | . . 36 17 6 Average 34 | . 65 35 17 13 Maximum Alert Level . | . . . . . Low Security (%) 100 | 100 100 100 100 100 Level 1 . | . . . . . Level 2 . | . . . . . Level 3 . | . . . . . Level 4 . | . . . . . Level 5 . | . . . . . High Security . | . . . . . Max Security . | . . . . . Squads Dispatched 4 | . 4 . . . Investigation 2 | . 2 . . . Extermination . | . . . . . Reinforcement 2 | . 2 . . . Assault . | . . . . . Garrison . | . . . . . Intercept . | . . . . . Searches Triggered . | . . . . . Construction Impeded . | . . . . . Haulers Reinforced . | . . . . . Active Scanning Responses . | . . . . . Cargo Convoy Interrupts . | . . . . . Stealth | -11 -10 -10 -9 -9 --------- Run | Yrd Mat Min Mat Min Distress Signals 2 | . 1 . . 1 Communications Jammed . | . . . . . Distress Signals . | . . . . . Times Spotted 22 | . 11 1 1 9 Peak Tracking Total 4 | . 3 1 3 4 Tactical Retreats 2 | . 1 . . 1 Traps | -11 -10 -10 -9 -9 ------- Run | Yrd Mat Min Mat Min Traps Triggered 3 | . 2 1 . . Indirectly . | . . . . . Trap Hack Attempts . | . . . . . Triggered . | . . . . . Disarmed . | . . . . . Reprogrammed . | . . . . . Reused . | . . . . . Traps Extracted . | . . . . . Installed . | . . . . . Triggered . | . . . . . Machines | -11 -10 -10 -9 -9 ---------- Run | Yrd Mat Min Mat Min Machines Disabled . | . . . . . Max in Single Turn . | . . . . . Machines Repaired . | . . . . . Machines Dismantled . | . . . . . Machines Sabotaged . | . . . . . Overloaded Fab Kills . | . . . . . Hacking | -11 -10 -10 -9 -9 --------- Run | Yrd Mat Min Mat Min Machines Accessed 4 | . 2 2 . . Terminals 3 | . 2 1 . . Fabricators . | . . . . . Repair Stations . | . . . . . Recycling Units . | . . . . . Scanalyzers . | . . . . . Garrison Access . | . . . . . Total Hacks 7 | . 5 2 . . Successful 5 | . 3 2 . . Failed 2 | . 2 . . . Catastrophic . | . . . . . Database Lockouts . | . . . . . Manual . | . . . . . Terminals 6 | . 5 1 . . Fabricators . | . . . . . Repair Stations . | . . . . . Recycling Units . | . . . . . Scanalyzers . | . . . . . Garrison Access . | . . . . . Terminal Hacks 5 | . 3 2 . . Prototype ID Bank 1 | . 1 . . . Open Door 1 | . . 1 . . Hauler Manifests 1 | . 1 . . . Registered Components 1 | . 1 . . . Zone Layout 1 | . . 1 . . Fabricator Hacks . | . . . . . Repair Station Hacks . | . . . . . Recycling Unit Hacks . | . . . . . Scanalyzer . | . . . . . Garrison Access Hacks . | . . . . . Unauthorized Hacks . | . . . . . Terminals . | . . . . . Fabricators . | . . . . . Repair Stations . | . . . . . Recycling Units . | . . . . . Scanalyzers . | . . . . . Garrison Access . | . . . . . Data Cores Recovered . | . . . . . Used . | . . . . . Hacking Detections 3 | . 2 1 . . Full Trace Events . | . . . . . Feedback Events . | . . . . . Feedback Blocked . | . . . . . Robot Schematics Acquired . | . . . . . Robots Built . | . . . . . Authchips . | . . . . . Time . | . . . . . Total Robot Build Rating . | . . . . . Part Schematics Acquired . | . . . . . Parts Built . | . . . . . Authchips . | . . . . . Time . | . . . . . Total Part Build Rating . | . . . . . Parts Repaired . | . . . . . Time . | . . . . . Parts Recycled . | . . . . . Recycled Matter . | . . . . . Retrieved Matter . | . . . . . Retrieved Components . | . . . . . Parts Scanalyzed . | . . . . . Part Schematics Acquired . | . . . . . Parts Damaged . | . . . . . Bothacking | -11 -10 -10 -9 -9 ------------ Run | Yrd Mat Min Mat Min Used RIF Installer . | . . . . . Robots Hacked . | . . . . . Non-combat . | . . . . . Combat . | . . . . . Robot Hacks Applied . | . . . . . Relay Couplers Released . | . . . . . Fabnet Peak Effective % . | . . . . . Robots Rewired . | . . . . . Allies Hacked . | . . . . . Hacks Repelled . | . . . . . Allies | -11 -10 -10 -9 -9 -------- Run | Yrd Mat Min Mat Min Total Allies . | . . . . . Largest Group . | . . . . . Highest-Rated Group . | . . . . . Highest-Rated Ally . | . . . . . Total Orders . | . . . . . Ally Attacks . | . . . . . Total Damage . | . . . . . Kills . | . . . . . Allies Corrupted . | . . . . . Allies Melted 1 | . . 1 . . Intel | -11 -10 -10 -9 -9 ------- Run | Yrd Mat Min Mat Min Robot Analysis Total . | . . . . . Derelict Logs Recovered 2 | . . 1 . 1 Drone Launches . | . . . . . Drone Recoveries . | . . . . . Exploration | -11 -10 -10 -9 -9 ------------- Run | Yrd Mat Min Mat Min Turns Passed 2008 | 119 634 489 31 735 Spaces Moved 1127 | 67 315 280 20 445 Core 3 | 3 . . . . Treads 892 | 64 315 280 20 213 Legs 232 | . . . . 232 Wheels . | . . . . . Hover . | . . . . . Flight . | . . . . . Fastest Speed 50 | 50 160 160 160 120 Average Speed 151 | 155 160 160 160 139 Slowest Speed 160 | 160 160 160 160 160 Overloaded Moves . | . . . . . Propulsion Burnouts . | . . . . . Robots Hopped . | . . . . . Cave-ins Triggered . | . . . . . Exploration Rate (%) 36 | 4 43 61 5 67 Regions Visited 4 Branch Regions 2 Pre-discovered Areas 1 | . . 1 . . Known Exits Taken . | . . . . . Unknown Exits Taken 4 | 1 1 1 1 . Scrap Searched 3 | . . 2 . 1 Spaces Dug . | . . . . . Terrain Destroyed . | . . . . . Melee . | . . . . . Projectile . | . . . . . AOE . | . . . . . Terrain Rammed . | . . . . . Walls Destroyed . | . . . . . Machines Disabled . | . . . . . Actions | -11 -10 -10 -9 -9 --------- Run | Yrd Mat Min Mat Min Total 1293 | 82 385 313 19 494 Wait 41 | . 25 13 . 3 Move 1123 | 66 314 279 19 445 Hop . | . . . . . Pick Up 28 | 10 9 8 . 1 Fast Attach . | . . . . . Attach 10 | 6 1 2 . 1 Detach . | . . . . . Swap 5 | . 1 2 . 2 Drop 9 | . 4 4 . 1 Fire 75 | . 31 5 . 39 Melee . | . . . . . Ram . | . . . . . Kick 2 | . . . . 2 Crush . | . . . . . Escape Stasis . | . . . . . Rewire . | . . . . . Trap . | . . . . . Miscellaneous . | . . . . . Route ------- -11/Scrapyard -10/Materials (discovered 2 exits: [*Mat] / *Min) -10/Mines -9/Materials -9/Mines (discovered 1 exit: [*Mat]) History --------- Turn | Location | Event 45 | -11/Scrapyard | Discovered new exit (range 15) 120 | -11/Scrapyard | Entered Materials 304 | -10/Materials | Build established: Mutant 464 | -10/Materials | Discovered new exit (range 16) 743 | -10/Materials | Discovered new exit (range 7) 754 | -10/Materials | Entered Mines 856 | -10/Mines | Met a Derelict who couldn't figure out how to use a Trap Extractor 1109 | -10/Mines | Learned location of Storage (-8) 1219 | -10/Mines | Discovered new exit (range 11) 1243 | -10/Mines | Entered Materials 1243 | -9/Materials | Evolved 2 slots: Utility x2 1243 | -9/Materials | Discovered new exit (range 7) 1274 | -9/Materials | Entered Mines 1306 | -9/Mines | Assembled infested the area 1932 | -9/Mines | Discovered new exit (range 14) 2009 | -9/Mines | Self-destructed Last Messages --------------- S-10 Pest suffers critical hit (Burn). S-10 Pest destroyed. Lgt. Treads destroyed. S-10 Pest destroyed. Acquired 25 matter. Searching scrap... Found Med. Matter Pod. Found Hvy. Assault Rifle. Found Mace. Found 39 Matter. Acquired Hvy. Assault Rifle. Kicked R-06 Scavenger. Kicked K-01 Serf. EXIT=FOUND Sml. Laser melted. G-34 Mercenary destroyed. Aluminum Leg destroyed. Sml. Laser destroyed. L-31 Rogue destroyed. Lgt. Ion Engine destroyed. Map ----- +----------------------------------------------------+ | | | ?????????????????????????????????????????????????? | | ?????????????????????????????????????????????????? | | ?????????????????????????????????????????????????? | | ?????????????????????????????????????????????????? | | ?????????????????????????????????????????????????? | | ?????????????????????????????????????????????????? | | ?????????????????????????????????????????????????? | | ?????????????????????????????????????????????????? | | ?????????????????????????????????????????????????? | | ?????????????????????????????????????????????????? | | ?????????????????????????????????????????????????? | | ????????? ???????????????????????????????????????? | | ?????????